{"text_format":"1","workbook":"xlsx","n_sheets":1,"sheets":["Перелік СРВ"],"not_rendered":{"charts":0,"images":0,"macros":0,"external_links":0,"defined_names":1,"comments":0,"pivot_tables":0},"unopened":[],"bounds":{"document_bytes":16777216,"sheet_cells":100000,"rows_first":2000,"rows_last":500,"rows_between":2000,"halvings":0,"cell_chars":16384,"cell_head_chars":4096},"cells_cut":0,"cells_raw":0,"read":"whole","date_system":"1900"}

{"sheet":"Перелік СРВ","index":0,"n_rows":748,"n_cols":19,"rows_kept":748,"cut":false,"hidden":false,"merged":[[24,0,24,18],[8,1,8,6],[8,7,8,10],[10,7,10,10],[22,0,22,18],[11,7,11,10],[13,12,13,17],[8,12,8,17],[10,12,10,17],[12,12,12,17],[9,1,9,6],[11,12,11,17],[13,7,13,10],[14,7,14,10],[12,7,12,10],[7,7,7,10],[7,12,7,17],[6,12,6,17],[23,0,23,18],[20,0,20,18],[9,12,9,17],[10,1,10,6],[9,7,9,10],[6,7,6,10],[7,1,7,6],[6,1,6,6],[18,0,19,18],[15,7,15,10],[16,7,16,10],[11,1,11,6],[21,0,21,18],[0,14,0,16],[1,13,1,17],[3,13,3,16],[5,1,5,6],[5,7,5,10],[3,1,3,6],[4,1,4,6],[3,7,3,10],[4,12,4,17],[4,7,4,10],[5,12,5,17],[25,0,25,18],[26,17,27,17],[26,15,27,15],[26,4,27,4],[26,16,27,16],[26,14,27,14],[26,7,26,13],[26,18,27,18],[26,5,26,6],[26,3,27,3],[26,0,27,0],[26,1,27,1],[26,2,27,2],[754,3,754,4],[743,3,743,4],[744,3,744,4],[751,0,751,15],[746,14,746,18],[747,9,747,11],[746,9,746,11],[746,0,746,7],[744,0,744,2],[743,0,743,2],[742,0,742,1],[747,14,747,18],[750,0,750,4],[436,0,436,1],[538,0,538,1],[640,0,640,1],[747,0,747,7],[641,0,658,0],[29,0,38,0],[131,0,148,0],[259,0,266,0],[233,0,258,0],[539,0,553,0],[334,0,334,1],[130,0,130,1],[232,0,232,1]]}
[null,null,null,null,null,null,null,null,null,null,null,null,null,null,"Додаток 1"]
[null,null,null,null,null,null,null,null,null,null,null,null,null,"до Санітарних правил"]
[]
[null,"ПОГОДЖУЮ",null,null,null,null,null,null,null,null,null,null,null,"ПОГОДЖУЮ"]
[null,"________________________________________",null,null,null,null,null,null,null,null,null,null,"_______________________________________________"]
[null,"(найменування посади керівника державного",null,null,null,null,null,null,null,null,null,null,"(найменування посади керівника органу виконавчої"]
[null,"спеціалізованого",null,null,null,null,null,null,null,null,null,null,"влади з"]
[null,"____________________________________",null,null,null,null,null,null,null,null,null,null,"_______________________________________________"]
[null,"лісозахисного підприємства)",null,null,null,null,null,null,null,null,null,null,"питань лісового господарства Автономної Республіки Крим або"]
[null,"__________________________________________",null,null,null,null,null,null,null,null,null,null,"_______________________________________________"]
[null,"(підпис, ініціали та прізвище)",null,null,null,null,null,null,null,null,null,null,"відповідного територіального органу Держлісагенства)"]
[null,"____  _________________ 20 ____ року",null,null,null,null,null,null,null,null,null,null,"______________________________________________"]
[null,null,null,null,null,null,null,null,null,null,null,null,"(пдпис, ініціали та прізвище)"]
[null,null,null,null,null,null,null,null,null,null,null,null,"_____ _______________20___ року"]
[]
[]
[]
[]
[" ПЕРЕЛІК"]
[]
["заходів з поліпшення санітарного стану лісів"]
["ДП \"Костопільський лісгосп\""]
["(найменування власника лісів, постійного лісокористувача)"]
["_____________________________________"]
["(Автономна Республіка Крим, область)"]
[]
["Лісництво","№ кварталу","№ виділу","Площа виділу, га","№ підвиділу","Площа підвиділу, гектарів",null,"Коротка таксаційна характеристика відповідно до матеріалів лісовпрідкування",null,null,null,null,null,null,"Категорія захищеності","Вид запланованих заходиів","Причини призначення заходів","Орієнтовний запас деревини, що підлягає вирубуванню, м3/га","Наявність рослин та тварин занесених до Червоної книги"]
[null,null,null,null,null,"загальна","у тому числі площа, можлива для експлуатації","склад","вік, років","повнота","бонітет","середня висота, м","середній діаметер, см","запас деревостану, м3/га"]
[1,2,3,4,5,6,7,8,9,10,11,12,13,14,15,16,17,18,19]
["Костопільське",1,14,4.5,null,4.5,null,"10Сз+Дз ",60,0.75,"1А",24,32,390,3,"ВСР","КВШ, комплекс еко.-клім. факторів",15,"немає"]
[null,1,17,0.6,null,0.6,null,"7Сз3Бп",55,0.85,"1Б",26,30,390,3,"ВСР","Вітровал",10,"немає"]
[null,2,23,3.3,null,1.9,null,"10Сз",75,0.7,"1А",27,32,420,4,"ВСР","КВШ, комплекс еко.-клім. факторів",15,"немає"]
[null,4,19,4.5,null,4.5,null,"10Сз+Бп+Гз+Дз",55,0.7,"1Б",25,30,360,4,"ВСР","КВШ, комплекс еко.-клім. факторів",15,"немає"]
[null,22,7,4.5999999999999996,null,4.5999999999999996,null,"10Сз+Бп",44,0.9,"1А",19,22,330,2,"ВСР","КВШ, комплекс еко.-клім. факторів",10,"немає"]
[null,44,21,4.5999999999999996,null,4.5999999999999996,null,"7Гз3Дз+Сз+Ос+Бп",144,0.55000000000000004,2,24,40,130,2,"ВСР","Бурелом",15,"немає"]
[null,67,2,14,1,2,null,"10Сз+Бп+Влч+Гз",58,0.8,"1Б",27,28,470,2,"ВСР","КВШ, комплекс еко.-клім. факторів",5,"немає"]
[null,67,10,8.1,null,8.1,null,"10Сз",62,0.8,"1А",25,30,430,2,"ВСР","КВШ, комплекс еко.-клім. факторів",10,"немає"]
[null,76,15,4.5999999999999996,null,4.5999999999999996,null,"7Сз3Дз",52,0.75,"1А",22,28,320,4,"ВСР","КВШ, комплекс еко.-клім. факторів",10,"немає"]
[null,82,6,7.7,null,7.7,null,"4Дз2Сз2Гз1Бп1Ос",51,0.75,1,18,22,250,2,"ВСР","КВШ, комплекс еко.-клім. факторів",15,"немає"]
[]
[]
[]
[]
[]
[]
[]
[]
[]
[]
[]
[]
[]
[]
[]
[]
[]
[]
[]
[]
[]
[]
[]
[]
[]
[]
[]
[]
[]
[]
[]
[]
[]
[]
[]
[]
[]
[]
[]
[]
[]
[]
[]
[]
[]
[]
[]
[]
[]
[]
[]
[]
[]
[]
[]
[]
[]
[]
[]
[]
[]
[]
[]
[]
[]
[]
[]
[]
[]
[]
[]
[]
[]
[]
[]
[]
[]
[]
[]
[]
[]
[]
[]
[]
[]
[]
[]
[]
[]
[]
[]
["Разом",null,null,{"$f":"SUM(D30:D130)","v":56.500000000000007},null,{"$f":"SUM(F30:F130)","v":43.100000000000009},{"$f":"SUM(G30:G130)","v":0}]
["Мащанське",3,10,2.1,null,2.1,null,"10Сз+Гз,Дз,Ос",85,0.6,1,28,36,380,2,"ВСР","КВШ, комплекс еко.-клім. факторів",10,"немає"]
[null,3,13,0.5,null,0.5,null,"6Ос1Дз2Гз1Бп",80,0.6,1,26,30,240,2,"ВСР","КВШ, комплекс еко.-клім. факторів",10,"немає"]
[null,3,18,0.7,null,0.7,null,"7Сз1Дз1Ос1Гз",90,0.7,1,27,40,380,2,"ВСР","КВШ, комплекс еко.-клім. факторів",15,"немає"]
[null,4,23,0.9,null,0.9,null,"10Сз+Дз,Гз",110,0.6,2,28,44,380,2,"ВСР","КВШ, комплекс еко.-клім. факторів",10,"немає"]
[null,13,11,2.8,null,2.8,null,"9Сз1Дз+Бп,Гз",75,0.7,"1А",28,36,420,2,"ВСР","КВШ, комплекс еко.-клім. факторів",10,"немає"]
[null,13,12,1.7,null,1.7,null,"10Сз+Дз",80,0.6,"1А",28,36,380,2,"ВСР","КВШ, комплекс еко.-клім. факторів",15,"немає"]
[null,14,19,2.1,null,2.1,null,"8Сз2Гз+Дз",80,0.7,1,27,36,400,2,"ВСР","КВШ, комплекс еко.-клім. факторів",15,"немає"]
[null,39,25,2.6,null,2.2999999999999998,null,"10Сз+Дз",70,0.6,"1А",27,36,360,2,"ВСР","КВШ, комплекс еко.-клім. факторів",15,"немає"]
[null,48,13,3.2,null,3.2,null,"8Сз2Гз+Дз",70,0.7,1,25,28,270,2,"ВСР","КВШ, комплекс еко.-клім. факторів",10,"немає"]
[null,52,21,3.8,null,2.8,null,"10Сз",55,0.7,"1А",23,28,340,2,"ВСР","КВШ, комплекс еко.-клім. факторів",10,"немає"]
[null,52,24,1.5,null,1.5,null,"10Сз+Дз,Бп",80,0.7,1,26,36,400,2,"ВСР","КВШ, комплекс еко.-клім. факторів",10,"немає"]
[null,53,29,1.9,null,1.9,null,"3Дз2Влч2Бп1Ос1Гз1Яз",53,0.7,2,17,18,180,4,"ВСР","КВШ, комплекс еко.-клім. факторів",15,"немає"]
[null,53,32,3.5,null,3.5,null,"4Сз3Бп2Дз(80)1Гз+Дз(210)",80,0.7,1,26,32,290,4,"ВСР","КВШ, комплекс еко.-клім. факторів",10,"немає"]
[null,70,13,7.1,null,6.3,null,"8Сз2Дз+Бп",80,0.65,1,27,36,360,3,"ВСР","КВШ, комплекс еко.-клім. факторів",15,"немає"]
[null,71,8,3.8,null,3.8,null,"9Сз1Гз",82,0.75,1,26,32,350,3,"ВСР","КВШ, комплекс еко.-клім. факторів",10,"немає"]
[null,81,31,5.4,null,5.4,null,"10Сз+Дз,Бп",48,0.7,"1А",20,24,280,4,"ВСР","КВШ, комплекс еко.-клім. факторів",10,"немає"]
[null,82,8,2.5,null,2.5,null,"8Сз1Дз1Бп",85,0.6,1,27,32,330,3,"ВСР","КВШ, комплекс еко.-клім. факторів",15,"немає"]
[null,82,12,1.5,null,1.5,null,"10Сз+Дз,Бп",85,0.6,2,24,32,310,3,"ВСР","КВШ, комплекс еко.-клім. факторів",15,"немає"]
[]
[]
[]
[]
[]
[]
[]
[]
[]
[]
[]
[]
[]
[]
[]
[]
[]
[]
[]
[]
[]
[]
[]
[]
[]
[]
[]
[]
[]
[]
[]
[]
[]
[]
[]
[]
[]
[]
[]
[]
[]
[]
[]
[]
[]
[]
[]
[]
[]
[]
[]
[]
[]
[]
[]
[]
[]
[]
[]
[]
[]
[]
[]
[]
[]
[]
[]
[]
[]
[]
[]
[]
[]
[]
[]
[]
[]
[]
[]
[]
[]
[]
[]
["Разом",null,null,{"$f":"SUM(D132:D232)","v":47.599999999999994},null,{"$f":"SUM(F132:F232)","v":45.499999999999993},{"$f":"SUM(G132:G232)","v":0}]
["Базальтівське",4,20,4.4000000000000004,null,4.4000000000000004,null,"3Дз3Яз3Бп1Гз",80,0.6,1,27,32,290,4,"ВСР","Вітровал",15,"немає"]
[null,6,20,1.4,null,1.4,null,"10Сз+Дз",80,0.7,1,30,36,460,4,"ВСР","КВШ, комплекс еко.-клім. факторів",15,"немає"]
[null,8,6,9.1,null,9.1,null,"7Бп2Гз1Дз+Ос+Клг",75,0.7,1,26,28,230,4,"ВСР","КВШ, комплекс еко.-клім. факторів",10,"немає"]
[null,9,20,2.4,null,2.4,null,"10Сз+Гз+Дз",72,0.7,1,29,36,440,4,"ВСР","КВШ, комплекс еко.-клім. факторів",15,"немає"]
[null,14,2,2.4,null,2.4,null,"9Сз1Гз+Бп+Дз",80,0.7,1,29,36,370,3,"ВСР","КВШ, комплекс еко.-клім. факторів",15,"немає"]
[null,14,8,6.6,null,6.6,null,"7Сз2Бп1Гз+Дз+Клг",80,0.7,1,30,36,370,3,"ВСР","КВШ, комплекс еко.-клім. факторів",15,"немає"]
[null,15,18,2.9,1,1,null,"8Сз2Дз+Бп",50,0.6,1,22,28,250,4,"ВСР","КВШ, комплекс еко.-клім. факторів",10,"немає"]
[null,18,35,2.6,null,2.6,null,"8Сз2Бп+Ялє+Дз",80,0.6,1,30,40,350,4,"ВСР","КВШ, комплекс еко.-клім. факторів",20,"немає"]
[null,18,50,1.1000000000000001,null,1.1000000000000001,null,"7Сз3Дз",59,0.7,1,26,32,360,4,"ВСР","КВШ, комплекс еко.-клім. факторів",10,"немає"]
[null,21,79,2.9,null,2.9,null,"10Сз+Дз",75,0.65,1,27,32,390,4,"ВСР","КВШ, комплекс еко.-клім. факторів",15,"немає"]
[null,22,37,3.7,null,3.7,null,"9Сз1Дз+Клг",42,0.8,1,23,26,360,4,"ВСР","КВШ, комплекс еко.-клім. факторів",20,"немає"]
[null,23,7,1.8,null,1.8,null,"8Сз1Дз1Гз+Бп",80,0.6,1,30,36,360,4,"ВСР","КВШ, комплекс еко.-клім. факторів",15,"немає"]
[null,25,1,4.0999999999999996,2,2,null,"6Сз2Бп1Гз1Дз+Ос",80,0.7,1,28,32,330,4,"ВСР","КВШ, комплекс еко.-клім. факторів",15,"немає"]
[null,25,2,13.1,7,3,null,"8Сз1Дз1Гз",80,0.65,1,28,32,340,4,"ВСР","КВШ, комплекс еко.-клім. факторів",15,"немає"]
[null,25,12,13.5,1,3,null,"9Сз1Дз+Гз",80,0.7,1,29,36,420,4,"ВСР","КВШ, комплекс еко.-клім. факторів",10,"немає"]
[null,26,7,1.3,null,0.8,null,"10Сз+Дз+Гз",57,0.7,1,24,26,350,4,"ВСР","КВШ, комплекс еко.-клім. факторів",15,"немає"]
[null,27,18,3.5,null,3.5,null,"9Сз1Г+Дз+Бп",80,0.7,1,28,32,360,4,"ВСР","КВШ, комплекс еко.-клім. факторів",10,"немає"]
[null,28,13,3.1,null,3.1,null,"10Сз+Дз",75,0.7,1,28,32,420,4,"ВСР","КВШ, комплекс еко.-клім. факторів",15,"немає"]
[null,30,9,2.1,null,2.1,null,"10Сз+Бп+Дз+Гз",80,0.7,1,27,36,420,4,"ВСР","КВШ, комплекс еко.-клім. факторів",15,"немає"]
[null,30,20,2.1,null,2.1,null,"8Сз2Гз",56,0.6,1,25,32,240,4,"ВСР","КВШ, комплекс еко.-клім. факторів",10,"немає"]
[null,30,21,1,null,1,null,"8Сз2Гз",56,0.6,1,26,32,240,4,"ВСР","КВШ, комплекс еко.-клім. факторів",15,"немає"]
[null,31,14,1.7,null,1.7,null,"6Сз2Бп1Дз1Влч",80,0.7,1,28,40,370,4,"ВСР","КВШ, комплекс еко.-клім. факторів",20,"немає"]
[null,34,11,2.2000000000000002,null,2.2000000000000002,null,"9Сз1Дз+Гз",52,0.7,1,23,24,330,4,"ВСР","КВШ, комплекс еко.-клім. факторів",10,"немає"]
[null,35,7,2.4,null,2.4,null,"9Сз1Гз",77,0.65,1,30,36,370,4,"ВСР","КВШ, комплекс еко.-клім. факторів",20,"немає"]
[null,35,31,0.4,null,0.4,null,"3Дз2Сз2Влч1Бп1Гз1Ос",85,0.5,1,28,32,250,4,"ВСР","КВШ, комплекс еко.-клім. факторів",15,"немає"]
[null,35,40,6.7,5,3,null,"10Сз+Бп",85,0.6,1,28,36,380,4,"ВСР","КВШ, комплекс еко.-клім. факторів",15,"немає"]
["Базальтівське",35,40,6.7,6,2,null,"10Сз+Бп",85,0.6,1,28,36,380,4,"ВСР","КВШ, комплекс еко.-клім. факторів",20,"немає"]
[null,39,13,0.6,null,0.6,null,"10Сз+Бп",80,0.7,1,29,36,450,4,"ВСР","КВШ, комплекс еко.-клім. факторів",10,"немає"]
[null,42,4,2.2000000000000002,null,2.2000000000000002,null,"10Сз+Гз",57,0.7,1,25,26,370,4,"ВСР","КВШ, комплекс еко.-клім. факторів",10,"немає"]
[null,43,40,6.1,1,2.5,null,"10Сз",80,0.4,1,27,32,210,3,"ВСР","КВШ, комплекс еко.-клім. факторів",15,"немає"]
[null,48,11,17.7,1,3,null,"10Сз",57,0.85,1,21,22,370,4,"ВСР","КВШ, комплекс еко.-клім. факторів",10,"немає"]
[null,50,21,7.5,1,2,null,"10Влч",80,0.5,1,26,28,250,4,"ВСР","КВШ, комплекс еко.-клім. факторів",10,"немає"]
[null,50,22,2.8,null,2.8,null,"8Сз1Дз1Гз",55,0.7,1,26,26,350,4,"ВСР","КВШ, комплекс еко.-клім. факторів",10,"немає"]
[null,52,6,32.9,1,3,null,"10Сз+Дз",55,0.7,1,21,22,300,4,"ВСР","КВШ, комплекс еко.-клім. факторів",10,"немає"]
[]
[]
[]
[]
[]
[]
[]
[]
[]
[]
[]
[]
[]
[]
[]
[]
[]
[]
[]
[]
[]
[]
[]
[]
[]
[]
[]
[]
[]
[]
[]
[]
[]
[]
[]
[]
[]
[]
[]
[]
[]
[]
[]
[]
[]
[]
[]
[]
[]
[]
[]
[]
[]
[]
[]
[]
[]
[]
[]
[]
[]
[]
[]
[]
[]
[]
[]
["Разом",null,null,{"$f":"SUM(D234:D334)","v":175},null,{"$f":"SUM(F234:F334)","v":87.800000000000011},{"$f":"SUM(G234:G334)","v":0}]
["Моквинське"]
[]
[]
[]
[]
[]
[]
[]
[]
[]
[]
[]
[]
[]
[]
[]
[]
[]
[]
[]
[]
[]
[]
[]
[]
[]
[]
[null,null,null,null,null,null,null,null,null,null,null,null,null,null,null,null,"ПРГВ,КВШ"]
[null,null,null,null,null,null,null,null,null,null,null,null,null,null,null,null,"ПРГВ,КВШ"]
[null,null,null,null,null,null,null,null,null,null,null,null,null,null,null,null,"ПРГВ,КВШ"]
[null,null,null,null,null,null,null,null,null,null,null,null,null,null,null,null,"ПРГВ,КВШ"]
[null,null,null,null,null,null,null,null,null,null,null,null,null,null,null,null,"ПРГВ,КВШ"]
[null,null,null,null,null,null,null,null,null,null,null,null,null,null,null,null,"ПРГВ,КВШ"]
[null,null,null,null,null,null,null,null,null,null,null,null,null,null,null,null,"ПРГВ,КВШ"]
[null,null,null,null,null,null,null,null,null,null,null,null,null,null,null,null,"ПРГВ,КВШ"]
[null,null,null,null,null,null,null,null,null,null,null,null,null,null,null,null,"ПРГВ,КВШ"]
[null,null,null,null,null,null,null,null,null,null,null,null,null,null,null,null,"ПРГВ,КВШ"]
[null,null,null,null,null,null,null,null,null,null,null,null,null,null,null,null,"ПРГВ,КВШ"]
[null,null,null,null,null,null,null,null,null,null,null,null,null,null,null,null,"ПРГВ,КВШ"]
[null,null,null,null,null,null,null,null,null,null,null,null,null,null,null,null,"ПРГВ,КВШ"]
[null,null,null,null,null,null,null,null,null,null,null,null,null,null,null,null,"ПРГВ,КВШ"]
[null,null,null,null,null,null,null,null,null,null,null,null,null,null,null,null,"ПРГВ,КВШ"]
[null,null,null,null,null,null,null,null,null,null,null,null,null,null,null,null,"ПРГВ,КВШ"]
[null,null,null,null,null,null,null,null,null,null,null,null,null,null,null,null,"ПРГВ,КВШ"]
[null,null,null,null,null,null,null,null,null,null,null,null,null,null,null,null,"ПРГВ,КВШ"]
[null,null,null,null,null,null,null,null,null,null,null,null,null,null,null,null,"ПРГВ,КВШ"]
[null,null,null,null,null,null,null,null,null,null,null,null,null,null,null,null,"ПРГВ,КВШ"]
[null,null,null,null,null,null,null,null,null,null,null,null,null,null,null,null,"ПРГВ,КВШ"]
[null,null,null,null,null,null,null,null,null,null,null,null,null,null,null,null,"ПРГВ,КВШ"]
[null,null,null,null,null,null,null,null,null,null,null,null,null,null,null,null,"ПРГВ,КВШ"]
[null,null,null,null,null,null,null,null,null,null,null,null,null,null,null,null,"ПРГВ,КВШ"]
[null,null,null,null,null,null,null,null,null,null,null,null,null,null,null,null,"ПРГВ,КВШ"]
[null,null,null,null,null,null,null,null,null,null,null,null,null,null,null,null,"ПРГВ,КВШ"]
[null,null,null,null,null,null,null,null,null,null,null,null,null,null,null,null,"ПРГВ,КВШ"]
[null,null,null,null,null,null,null,null,null,null,null,null,null,null,null,null,"ПРГВ,КВШ"]
[null,null,null,null,null,null,null,null,null,null,null,null,null,null,null,null,"ПРГВ,КВШ"]
[null,null,null,null,null,null,null,null,null,null,null,null,null,null,null,null,"ПРГВ,КВШ"]
[null,null,null,null,null,null,null,null,null,null,null,null,null,null,null,null,"ПРГВ,КВШ"]
[null,null,null,null,null,null,null,null,null,null,null,null,null,null,null,null,"ПРГВ,КВШ"]
[null,null,null,null,null,null,null,null,null,null,null,null,null,null,null,null,"ПРГВ,КВШ"]
[null,null,null,null,null,null,null,null,null,null,null,null,null,null,null,null,"ПРГВ,КВШ"]
[null,null,null,null,null,null,null,null,null,null,null,null,null,null,null,null,"ПРГВ,КВШ"]
[null,null,null,null,null,null,null,null,null,null,null,null,null,null,null,null,"ПРГВ,КВШ"]
[null,null,null,null,null,null,null,null,null,null,null,null,null,null,null,null,"ПРГВ,КВШ"]
[null,null,null,null,null,null,null,null,null,null,null,null,null,null,null,null,"ПРГВ,КВШ"]
[null,null,null,null,null,null,null,null,null,null,null,null,null,null,null,null,"ПРГВ,КВШ"]
[null,null,null,null,null,null,null,null,null,null,null,null,null,null,null,null,"ПРГВ,КВШ"]
[null,null,null,null,null,null,null,null,null,null,null,null,null,null,null,null,"ПРГВ,КВШ"]
[null,null,null,null,null,null,null,null,null,null,null,null,null,null,null,null,"ПРГВ,КВШ"]
[null,null,null,null,null,null,null,null,null,null,null,null,null,null,null,null,"ПРГВ,КВШ"]
[null,null,null,null,null,null,null,null,null,null,null,null,null,null,null,null,"ПРГВ,КВШ"]
[null,null,null,null,null,null,null,null,null,null,null,null,null,null,null,null,"ПРГВ,КВШ"]
[null,null,null,null,null,null,null,null,null,null,null,null,null,null,null,null,"ПРГВ,КВШ"]
[null,null,null,null,null,null,null,null,null,null,null,null,null,null,null,null,"ПРГВ,КВШ"]
[null,null,null,null,null,null,null,null,null,null,null,null,null,null,null,null,"ПРГВ,КВШ"]
[null,null,null,null,null,null,null,null,null,null,null,null,null,null,null,null,"ПРГВ,КВШ"]
[null,null,null,null,null,null,null,null,null,null,null,null,null,null,null,null,"ПРГВ,КВШ"]
[null,null,null,null,null,null,null,null,null,null,null,null,null,null,null,null,"ПРГВ,КВШ"]
[null,null,null,null,null,null,null,null,null,null,null,null,null,null,null,null,"ПРГВ,КВШ"]
[null,null,null,null,null,null,null,null,null,null,null,null,null,null,null,null,"ПРГВ,КВШ"]
[null,null,null,null,null,null,null,null,null,null,null,null,null,null,null,null,"ПРГВ,КВШ"]
[null,null,null,null,null,null,null,null,null,null,null,null,null,null,null,null,"ПРГВ,КВШ"]
[null,null,null,null,null,null,null,null,null,null,null,null,null,null,null,null,"ПРГВ,КВШ"]
[null,null,null,null,null,null,null,null,null,null,null,null,null,null,null,null,"ПРГВ,КВШ"]
[null,null,null,null,null,null,null,null,null,null,null,null,null,null,null,null,"ПРГВ,КВШ"]
[null,null,null,null,null,null,null,null,null,null,null,null,null,null,null,null,"ПРГВ,КВШ"]
[null,null,null,null,null,null,null,null,null,null,null,null,null,null,null,null,"ПРГВ,КВШ"]
[null,null,null,null,null,null,null,null,null,null,null,null,null,null,null,null,"ПРГВ,КВШ"]
[null,null,null,null,null,null,null,null,null,null,null,null,null,null,null,null,"ПРГВ,КВШ"]
[null,null,null,null,null,null,null,null,null,null,null,null,null,null,null,null,"ПРГВ,КВШ"]
[null,null,null,null,null,null,null,null,null,null,null,null,null,null,null,null,"ПРГВ,КВШ"]
[null,null,null,null,null,null,null,null,null,null,null,null,null,null,null,null,"ПРГВ,КВШ"]
[null,null,null,null,null,null,null,null,null,null,null,null,null,null,null,null,"ПРГВ,КВШ"]
[null,null,null,null,null,null,null,null,null,null,null,null,null,null,null,null,"ПРГВ,КВШ"]
[null,null,null,null,null,null,null,null,null,null,null,null,null,null,null,null,"ПРГВ,КВШ"]
[null,null,null,null,null,null,null,null,null,null,null,null,null,null,null,null,"ПРГВ,КВШ"]
[null,null,null,null,null,null,null,null,null,null,null,null,null,null,null,null,"ПРГВ,КВШ"]
[null,null,null,null,null,null,null,null,null,null,null,null,null,null,null,null,"ПРГВ,КВШ"]
[null,null,null,null,null,null,null,null,null,null,null,null,null,null,null,null,"ПРГВ,КВШ"]
[null,null,null,null,null,null,null,null,null,null,null,null,null,null,null,null,"ПРГВ,КВШ"]
[null,null,null,null,null,null,null,null,null,null,null,null,null,null,null,null,"ПРГВ,КВШ"]
["Разом",null,null,{"$f":"SUM(D336:D436)","v":0},null,{"$f":"SUM(F336:F436)","v":0},{"$f":"SUM(G336:G436)","v":0}]
["Стидинське",null,null,null,null,null,null,null,null,null,null,null,null,null,null,null,"ПРГВ,КВШ"]
[null,null,null,null,null,null,null,null,null,null,null,null,null,null,null,null,"ПРГВ,КВШ"]
[null,null,null,null,null,null,null,null,null,null,null,null,null,null,null,null,"ПРГВ,КВШ"]
[null,null,null,null,null,null,null,null,null,null,null,null,null,null,null,null,"ПРГВ,КВШ"]
[null,null,null,null,null,null,null,null,null,null,null,null,null,null,null,null,"ПРГВ,КВШ"]
[null,null,null,null,null,null,null,null,null,null,null,null,null,null,null,null,"ПРГВ,КВШ"]
[null,null,null,null,null,null,null,null,null,null,null,null,null,null,null,null,"ПРГВ,КВШ"]
[null,null,null,null,null,null,null,null,null,null,null,null,null,null,null,null,"ПРГВ,КВШ"]
[null,null,null,null,null,null,null,null,null,null,null,null,null,null,null,null,"ПРГВ,КВШ"]
[null,null,null,null,null,null,null,null,null,null,null,null,null,null,null,null,"ПРГВ,КВШ"]
[null,null,null,null,null,null,null,null,null,null,null,null,null,null,null,null,"ПРГВ,КВШ"]
[null,null,null,null,null,null,null,null,null,null,null,null,null,null,null,null,"ПРГВ,КВШ"]
[null,null,null,null,null,null,null,null,null,null,null,null,null,null,null,null,"ПРГВ,КВШ"]
[null,null,null,null,null,null,null,null,null,null,null,null,null,null,null,null,"ПРГВ,КВШ"]
[null,null,null,null,null,null,null,null,null,null,null,null,null,null,null,null,"ПРГВ,КВШ"]
[null,null,null,null,null,null,null,null,null,null,null,null,null,null,null,null,"ПРГВ,КВШ"]
[null,null,null,null,null,null,null,null,null,null,null,null,null,null,null,null,"ПРГВ,КВШ"]
[null,null,null,null,null,null,null,null,null,null,null,null,null,null,null,null,"ПРГВ,КВШ"]
[null,null,null,null,null,null,null,null,null,null,null,null,null,null,null,null,"ПРГВ,КВШ"]
[null,null,null,null,null,null,null,null,null,null,null,null,null,null,null,null,"ПРГВ,КВШ"]
[null,null,null,null,null,null,null,null,null,null,null,null,null,null,null,null,"ПРГВ,КВШ"]
[null,null,null,null,null,null,null,null,null,null,null,null,null,null,null,null,"ПРГВ,КВШ"]
[null,null,null,null,null,null,null,null,null,null,null,null,null,null,null,null,"ПРГВ,КВШ"]
[null,null,null,null,null,null,null,null,null,null,null,null,null,null,null,null,"ПРГВ,КВШ"]
[null,null,null,null,null,null,null,null,null,null,null,null,null,null,null,null,"ПРГВ,КВШ"]
[null,null,null,null,null,null,null,null,null,null,null,null,null,null,null,null,"ПРГВ,КВШ"]
[null,null,null,null,null,null,null,null,null,null,null,null,null,null,null,null,"ПРГВ,КВШ"]
[null,null,null,null,null,null,null,null,null,null,null,null,null,null,null,null,"ПРГВ,КВШ"]
[null,null,null,null,null,null,null,null,null,null,null,null,null,null,null,null,"ПРГВ,КВШ"]
[null,null,null,null,null,null,null,null,null,null,null,null,null,null,null,null,"ПРГВ,КВШ"]
[null,null,null,null,null,null,null,null,null,null,null,null,null,null,null,null,"ПРГВ,КВШ"]
[null,null,null,null,null,null,null,null,null,null,null,null,null,null,null,null,"ПРГВ,КВШ"]
[null,null,null,null,null,null,null,null,null,null,null,null,null,null,null,null,"ПРГВ,КВШ"]
[null,null,null,null,null,null,null,null,null,null,null,null,null,null,null,null,"ПРГВ,КВШ"]
[null,null,null,null,null,null,null,null,null,null,null,null,null,null,null,null,"ПРГВ,КВШ"]
[null,null,null,null,null,null,null,null,null,null,null,null,null,null,null,null,"ПРГВ,КВШ"]
[null,null,null,null,null,null,null,null,null,null,null,null,null,null,null,null,"ПРГВ,КВШ"]
[null,null,null,null,null,null,null,null,null,null,null,null,null,null,null,null,"ПРГВ,КВШ"]
[null,null,null,null,null,null,null,null,null,null,null,null,null,null,null,null,"ПРГВ,КВШ"]
[null,null,null,null,null,null,null,null,null,null,null,null,null,null,null,null,"ПРГВ,КВШ"]
[null,null,null,null,null,null,null,null,null,null,null,null,null,null,null,null,"ПРГВ,КВШ"]
[null,null,null,null,null,null,null,null,null,null,null,null,null,null,null,null,"ПРГВ,КВШ"]
[null,null,null,null,null,null,null,null,null,null,null,null,null,null,null,null,"ПРГВ,КВШ"]
[null,null,null,null,null,null,null,null,null,null,null,null,null,null,null,null,"ПРГВ,КВШ"]
[null,null,null,null,null,null,null,null,null,null,null,null,null,null,null,null,"ПРГВ,КВШ"]
[null,null,null,null,null,null,null,null,null,null,null,null,null,null,null,null,"ПРГВ,КВШ"]
[null,null,null,null,null,null,null,null,null,null,null,null,null,null,null,null,"ПРГВ,КВШ"]
[null,null,null,null,null,null,null,null,null,null,null,null,null,null,null,null,"ПРГВ,КВШ"]
[null,null,null,null,null,null,null,null,null,null,null,null,null,null,null,null,"ПРГВ,КВШ"]
[null,null,null,null,null,null,null,null,null,null,null,null,null,null,null,null,"ПРГВ,КВШ"]
[null,null,null,null,null,null,null,null,null,null,null,null,null,null,null,null,"ПРГВ,КВШ"]
[null,null,null,null,null,null,null,null,null,null,null,null,null,null,null,null,"ПРГВ,КВШ"]
[null,null,null,null,null,null,null,null,null,null,null,null,null,null,null,null,"ПРГВ,КВШ"]
[null,null,null,null,null,null,null,null,null,null,null,null,null,null,null,null,"ПРГВ,КВШ"]
[null,null,null,null,null,null,null,null,null,null,null,null,null,null,null,null,"ПРГВ,КВШ"]
[null,null,null,null,null,null,null,null,null,null,null,null,null,null,null,null,"ПРГВ,КВШ"]
[null,null,null,null,null,null,null,null,null,null,null,null,null,null,null,null,"ПРГВ,КВШ"]
[null,null,null,null,null,null,null,null,null,null,null,null,null,null,null,null,"ПРГВ,КВШ"]
[null,null,null,null,null,null,null,null,null,null,null,null,null,null,null,null,"ПРГВ,КВШ"]
[null,null,null,null,null,null,null,null,null,null,null,null,null,null,null,null,"ПРГВ,КВШ"]
[null,null,null,null,null,null,null,null,null,null,null,null,null,null,null,null,"ПРГВ,КВШ"]
[null,null,null,null,null,null,null,null,null,null,null,null,null,null,null,null,"ПРГВ,КВШ"]
[null,null,null,null,null,null,null,null,null,null,null,null,null,null,null,null,"ПРГВ,КВШ"]
[null,null,null,null,null,null,null,null,null,null,null,null,null,null,null,null,"ПРГВ,КВШ"]
[null,null,null,null,null,null,null,null,null,null,null,null,null,null,null,null,"ПРГВ,КВШ"]
[null,null,null,null,null,null,null,null,null,null,null,null,null,null,null,null,"ПРГВ,КВШ"]
[null,null,null,null,null,null,null,null,null,null,null,null,null,null,null,null,"ПРГВ,КВШ"]
[null,null,null,null,null,null,null,null,null,null,null,null,null,null,null,null,"ПРГВ,КВШ"]
[null,null,null,null,null,null,null,null,null,null,null,null,null,null,null,null,"ПРГВ,КВШ"]
[null,null,null,null,null,null,null,null,null,null,null,null,null,null,null,null,"ПРГВ,КВШ"]
[null,null,null,null,null,null,null,null,null,null,null,null,null,null,null,null,"ПРГВ,КВШ"]
[null,null,null,null,null,null,null,null,null,null,null,null,null,null,null,null,"ПРГВ,КВШ"]
[null,null,null,null,null,null,null,null,null,null,null,null,null,null,null,null,"ПРГВ,КВШ"]
[null,null,null,null,null,null,null,null,null,null,null,null,null,null,null,null,"ПРГВ,КВШ"]
[null,null,null,null,null,null,null,null,null,null,null,null,null,null,null,null,"ПРГВ,КВШ"]
[null,null,null,null,null,null,null,null,null,null,null,null,null,null,null,null,"ПРГВ,КВШ"]
[null,null,null,null,null,null,null,null,null,null,null,null,null,null,null,null,"ПРГВ,КВШ"]
[null,null,null,null,null,null,null,null,null,null,null,null,null,null,null,null,"ПРГВ,КВШ"]
[null,null,null,null,null,null,null,null,null,null,null,null,null,null,null,null,"ПРГВ,КВШ"]
[null,null,null,null,null,null,null,null,null,null,null,null,null,null,null,null,"ПРГВ,КВШ"]
[null,null,null,null,null,null,null,null,null,null,null,null,null,null,null,null,"ПРГВ,КВШ"]
[null,null,null,null,null,null,null,null,null,null,null,null,null,null,null,null,"ПРГВ,КВШ"]
[null,null,null,null,null,null,null,null,null,null,null,null,null,null,null,null,"ПРГВ,КВШ"]
[null,null,null,null,null,null,null,null,null,null,null,null,null,null,null,null,"ПРГВ,КВШ"]
[null,null,null,null,null,null,null,null,null,null,null,null,null,null,null,null,"ПРГВ,КВШ"]
[null,null,null,null,null,null,null,null,null,null,null,null,null,null,null,null,"ПРГВ,КВШ"]
[null,null,null,null,null,null,null,null,null,null,null,null,null,null,null,null,"ПРГВ,КВШ"]
[null,null,null,null,null,null,null,null,null,null,null,null,null,null,null,null,"ПРГВ,КВШ"]
[null,null,null,null,null,null,null,null,null,null,null,null,null,null,null,null,"ПРГВ,КВШ"]
[null,null,null,null,null,null,null,null,null,null,null,null,null,null,null,null,"ПРГВ,КВШ"]
[null,null,null,null,null,null,null,null,null,null,null,null,null,null,null,null,"ПРГВ,КВШ"]
[null,null,null,null,null,null,null,null,null,null,null,null,null,null,null,null,"ПРГВ,КВШ"]
[null,null,null,null,null,null,null,null,null,null,null,null,null,null,null,null,"ПРГВ,КВШ"]
[null,null,null,null,null,null,null,null,null,null,null,null,null,null,null,null,"ПРГВ,КВШ"]
[null,null,null,null,null,null,null,null,null,null,null,null,null,null,null,null,"ПРГВ,КВШ"]
[null,null,null,null,null,null,null,null,null,null,null,null,null,null,null,null,"ПРГВ,КВШ"]
[null,null,null,null,null,null,null,null,null,null,null,null,null,null,null,null,"ПРГВ,КВШ"]
[null,null,null,null,null,null,null,null,null,null,null,null,null,null,null,null,"ПРГВ,КВШ"]
[null,null,null,null,null,null,null,null,null,null,null,null,null,null,null,null,"ПРГВ,КВШ"]
[null,null,null,null,null,null,null,null,null,null,null,null,null,null,null,null,"ПРГВ,КВШ"]
[null,null,null,null,null,null,null,null,null,null,null,null,null,null,null,null,"ПРГВ,КВШ"]
["Разом",null,null,{"$f":"SUM(D438:D538)","v":0},null,{"$f":"SUM(F438:F538)","v":0},{"$f":"SUM(G438:G538)","v":0},null,null,null,null,null,null,null,null,null,"ПРГВ,КВШ"]
["Злазненське",3,21,5.8,null,5.8,null,"10С+Б+Ос",60,0.7,1,22,28,320,4,"ВСР","КВШ, комплекс еко.-клім. факторів",10,"немає"]
[null,5,17,7.3,null,7.3,null,"9Сз1Бп",60,0.8,1,22,26,340,4,"ВСР","КВШ, комплекс еко.-клім. факторів",10,"немає"]
[null,17,29,1.6,null,1.6,null,"6Сз2Влч1Ос1Бп+Дз",65,0.6,2,20,28,190,4,"ВСР","КВШ, комплекс еко.-клім. факторів",10,"немає"]
[null,17,36,18,null,18,null,"10Сз",59,0.8,1,20,24,320,4,"ВСР","КВШ, комплекс еко.-клім. факторів",10,"немає"]
[null,19,2,8.3000000000000007,null,8.3000000000000007,null,"8Сз2Бп",55,0.7,2,17,20,210,4,"ВСР","КВШ, комплекс еко.-клім. факторів",10,"немає"]
[null,19,6,1.6,null,1.6,null,"10Сз",60,0.7,1,22,30,320,4,"ВСР","КВШ, комплекс еко.-клім. факторів",10,"немає"]
[null,19,7,3.1,null,3.1,null,"10Сз",55,0.7,1,21,24,300,4,"ВСР","КВШ, комплекс еко.-клім. факторів",10,"немає"]
[null,38,9,7.4,null,7.4,null,"10Сз+Бп",55,0.7,1,20,24,270,4,"ВСР","КВШ, комплекс еко.-клім. факторів",5,"немає"]
[null,39,21,2.8,null,2.8,null,"10Сз+Бп",55,0.7,2,17,24,220,4,"ВСР","КВШ, комплекс еко.-клім. факторів",10,"немає"]
[null,40,7,1.1000000000000001,null,1.1000000000000001,null,"10Сз",25,0.8,1,11,14,150,4,"ВСР","КВШ, комплекс еко.-клім. факторів",10,"немає"]
[null,41,8,6.5,null,6.5,null,"10Сз",55,0.7,1,21,28,300,4,"ВСР","КВШ, комплекс еко.-клім. факторів",5,"немає"]
[null,41,15,1.1000000000000001,null,0.9,null,"10Сз",41,0.7,1,17,20,220,4,"ВСР","Коренева губка",10,"немає"]
[null,null,null,null,null,null,null,"10Сз",null,null,null,null,null,null,null,"ВСР","ПРГВ,КВШ"]
[null,42,19,1,null,1,null,"10Сз",24,0.8,1,11,14,130,4,"ВСР","КВШ, комплекс еко.-клім. факторів",10,"немає"]
[null,42,20,4.5,null,4.5,null,"10Сз",33,0.75,"1А",16,18,220,4,"ВСР","КВШ, комплекс еко.-клім. факторів",5,"немає"]
[]
[]
[]
[]
[]
[]
[]
[]
[]
[]
[]
[]
[]
[]
[]
[]
[]
[]
[]
[]
[]
[]
[]
[]
[]
[]
[]
[]
[]
[]
[]
[]
[]
[]
[]
[]
[]
[]
[]
[]
[]
[]
[]
[]
[]
[]
[]
[]
[]
[]
[]
[]
[]
[]
[]
[]
[]
[]
[]
[]
[]
[]
[]
[]
[]
[]
[]
[]
[]
[]
[]
[]
[]
[]
[]
[]
[]
[]
[]
[]
[]
[]
[]
[]
[]
[]
["Разом",null,null,{"$f":"SUM(D540:D640)","v":70.099999999999994},null,{"$f":"SUM(F540:F640)","v":69.900000000000006},{"$f":"SUM(G540:G640)","v":0}]
["Мидське",5,6,3.2,1,0.5,null,"7Сз3Бп",34,0.7,1,15,18,150,4,"ВСР","КВШ, комплекс еко.-клім. факторів",20,"немає"]
[null,5,9,19.2,1,1,null,"9Сз1Бп",55,0.85,2,18,18,270,4,"ВСР","КВШ, комплекс еко.-клім. факторів",25,"немає"]
[null,5,9,19.2,2,1,null,"9Сз1Бп",55,0.85,2,18,18,270,4,"ВСР","КВШ, комплекс еко.-клім. факторів",25,"немає"]
[null,5,9,19.2,3,1,null,"9Сз1Бп",55,0.85,2,18,18,270,4,"ВСР","КВШ, комплекс еко.-клім. факторів",25,"немає"]
[null,5,10,2.9,null,2.9,null,"9Сз1Бп",54,0.7,2,18,20,220,4,"ВСР","КВШ, комплекс еко.-клім. факторів",15,"немає"]
[null,11,"2",19.7,1,0.1,null,"7Сз3Бп",40,0.7,1,17,18,165,4,"ВСР","КВШ, комплекс еко.-клім. факторів",30,"немає"]
[null,14,28,2.2000000000000002,null,2.2000000000000002,null,"10Сз",51,0.7,"1Б",25,28,400,4,"ВСР","КВШ, комплекс еко.-клім. факторів",15,"немає"]
[null,14,38,0.7,null,0.7,null,"10Сз+Лп+Бп",51,0.8,"1Б",25,28,470,4,"ВСР","КВШ, комплекс еко.-клім. факторів",25,"немає"]
[null,15,26,3,null,3,null,"10Сз+Бп",55,0.7,1,21,22,290,4,"ВСР","КВШ, комплекс еко.-клім. факторів",15,"немає"]
[null,16,8,18,2,0.1,null,"10Сз+Бп",50,0.7,1,20,22,280,4,"ВСР","КВШ, комплекс еко.-клім. факторів",30,"немає"]
[null,18,15,1.3,null,1.1000000000000001,null,"10Сз+Гр+Бп",65,0.7,"1А",25,36,380,4,"ВСР","КВШ, комплекс еко.-клім. факторів",20,"немає"]
[null,22,1,5.8,null,5.8,null,"10Сз+Бп",70,0.7,1,25,32,380,4,"ВСР","КВШ, комплекс еко.-клім. факторів",20,"немає"]
[null,24,12,0.4,null,0.4,null,"10Сз+Бп",70,0.6,1,23,30,300,4,"ВСР","КВШ, комплекс еко.-клім. факторів",20,"немає"]
[null,28,26,0.5,null,0.5,null,"10Сз",56,0.8,"1А",22,26,360,4,"ВСР","КВШ, комплекс еко.-клім. факторів",25,"немає"]
[null,29,5,5.5,null,5.5,null,"10Сзв+Бп+Ос",55,0.7,2,18,20,240,4,"ВСР","КВШ, комплекс еко.-клім. факторів",15,"немає"]
[null,29,6,3.5,null,3.5,null,"9Сз1Бп",53,0.7,1,21,26,280,4,"ВСР","КВШ, комплекс еко.-клім. факторів",15,"немає"]
[null,30,12,10.6,1,3,null,"9Сз1Бп+Ос",32,0.7,"1А",16,18,200,4,"ВСР","КВШ, комплекс еко.-клім. факторів",15,"немає"]
[null,30,13,0.3,null,0.3,null,"10Сз",70,0.7,"1А",26,32,400,4,"ВСР","КВШ, комплекс еко.-клім. факторів",35,"немає"]
[]
[]
[]
[]
[]
[]
[]
[]
[]
[]
[]
[]
[]
[]
[]
[]
[]
[]
[]
[]
[]
[]
[]
[]
[]
[]
[]
[]
[]
[]
[]
[]
[]
[]
[]
[]
[]
[]
[]
[]
[]
[]
[]
[]
[]
[]
[]
[]
[]
[]
[]
[]
[]
[]
[]
[]
[]
[]
[]
[]
[]
[]
[]
[]
[]
[]
[]
[]
[]
[]
[]
[]
[]
[]
[]
[]
[]
[]
[]
[]
[]
[]
[]
["Разом",null,null,{"$f":"SUM(D642:D742)","v":135.20000000000002},null,{"$f":"SUM(F642:F742)","v":32.599999999999994},{"$f":"SUM(G642:G742)","v":0}]
["Разом СРВ",null,null,null,null,{"$f":"F131+F233+F335+F437+F539+F641+F743","v":278.89999999999998},{"$f":"G131+G233+G335+G437+G539+G641+G743","v":0}]
["Всього",null,null,null,null,{"$f":"F131+F233+F335+F437+F539+F641+F743","v":278.89999999999998},{"$f":"G131+G233+G335+G437+G539+G641+G743","v":0}]
[]
["Директор ДП \"Костопільський лісгосп",null,null,null,null,null,null,null,null,"________________",null,null,null,null,"Мелещук О.О."]
["(найменування посади керівника підприємства, установи, організації)",null,null,null,null,null,null,null,null,"(підпис)",null,null,null,null,"(ініціали та прізвище)"]